[Event "Live Chess"]
[Site "Chess.com"]
[Date "2023.05.20"]
[Round "-"]
[White "Duke_of_Bebington"]
[Black "TheSmoulderingMaster"]
[Result "0-1"]
[WhiteElo "1578"]
[BlackElo "1734"]
[TimeControl "300"]
[EndTime "13:33:56 PDT"]
[Termination "TheSmoulderingMaster won by checkmate"]

1. e4 {[%clk 0:04:57.8]} 1... c5 {[%clk 0:04:58.7]} 2. c3 {[%clk 0:04:56.2]}
2... d5 {[%clk 0:04:57.5]} 3. exd5 {[%clk 0:04:54.5]} 3... Qxd5 {[%clk
0:04:56.7]} 4. d4 {[%clk 0:04:53.9]} 4... Nc6 {[%clk 0:04:54.3]} 5. Nf3 {[%clk
0:04:50.9]} 5... Bg4 {[%clk 0:04:53.1]} 6. Be2 {[%clk 0:04:41.5]} 6... e6 {[%clk
0:04:43.5]} 7. Na3 {[%clk 0:04:27.4]} 7... cxd4 {[%clk 0:04:40.6]} 8. Nb5 {[%clk
0:04:20.6]} 8... O-O-O {[%clk 0:04:32.5]} 9. Nfxd4 {[%clk 0:04:13.4]} 9... Bxe2
{[%clk 0:04:29]} 10. Qxe2 {[%clk 0:04:11.6]} 10... Nxd4 {[%clk 0:04:24]} 11.
Nxd4 {[%clk 0:04:10]} 11... Qxg2 {[%clk 0:04:19.3]} 12. Rf1 {[%clk 0:04:07.4]}
12... Nf6 {[%clk 0:04:15.5]} 13. Be3 {[%clk 0:04:03.8]} 13... Bc5 {[%clk
0:04:11.6]} 14. Qc4 {[%clk 0:03:57.9]} 14... Rd5 {[%clk 0:04:08.4]} 15. b4
{[%clk 0:03:53.7]} 15... Kb8 {[%clk 0:03:23.1]} 16. bxc5 {[%clk 0:03:50.9]}
16... Rc8 {[%clk 0:03:20.5]} 17. Rb1 {[%clk 0:03:30.5]} 17... Rcxc5 {[%clk
0:03:16.1]} 18. Qa6 {[%clk 0:03:19.3]} 18... Rxd4 {[%clk 0:03:07.2]} 19. Bxd4
{[%clk 0:03:09.2]} 19... Qe4+ {[%clk 0:03:04.7]} 20. Be3 {[%clk 0:03:07]} 20...
Qxb1+ {[%clk 0:03:02.5]} 21. Ke2 {[%clk 0:03:04.3]} 21... Qxf1+ {[%clk
0:03:01.1]} 22. Kxf1 {[%clk 0:03:02]} 22... bxa6 {[%clk 0:03:00]} 23. Bxc5
{[%clk 0:03:00.6]} 23... Ne4 {[%clk 0:02:58.7]} 24. Bd4 {[%clk 0:02:58.1]} 24...
f6 {[%clk 0:02:57.5]} 25. f4 {[%clk 0:02:56.2]} 25... Kb7 {[%clk 0:02:54.5]} 26.
Ke2 {[%clk 0:02:53.8]} 26... a5 {[%clk 0:02:51]} 27. Kf3 {[%clk 0:02:48.6]}
27... Nd2+ {[%clk 0:02:38.9]} 28. Ke2 {[%clk 0:02:46.3]} 28... Ne4 {[%clk
0:02:36.7]} 29. Kf3 {[%clk 0:02:34.5]} 29... Nd6 {[%clk 0:02:35.1]} 30. Ke2
{[%clk 0:02:31.9]} 30... a6 {[%clk 0:02:32.6]} 31. Kd3 {[%clk 0:02:31.3]} 31...
a4 {[%clk 0:02:30.6]} 32. c4 {[%clk 0:02:28]} 32... Kc6 {[%clk 0:02:29.3]} 33.
Kc3 {[%clk 0:02:22]} 33... Nf5 {[%clk 0:02:26.9]} 34. Bf2 {[%clk 0:02:15]} 34...
Nd6 {[%clk 0:02:18.1]} 35. Kb4 {[%clk 0:02:11.4]} 35... Ne4 {[%clk 0:02:15.9]}
36. Bd4 {[%clk 0:02:07.5]} 36... Nd2 {[%clk 0:02:11.9]} 37. a3 {[%clk
0:01:59.4]} 37... Nf3 {[%clk 0:02:10.6]} 38. h3 {[%clk 0:01:58]} 38... Nxd4
{[%clk 0:02:09.3]} 39. c5 {[%clk 0:01:54.6]} 39... Ne2 {[%clk 0:02:06.2]} 40.
Kxa4 {[%clk 0:01:53.4]} 40... Nxf4 {[%clk 0:02:05.2]} 41. Ka5 {[%clk 0:01:53]}
41... Kxc5 {[%clk 0:02:01.1]} 42. Kxa6 {[%clk 0:01:52.9]} 42... Nd5 {[%clk
0:01:59.3]} 43. a4 {[%clk 0:01:52.5]} 43... Nb4+ {[%clk 0:01:57.8]} 44. Ka5
{[%clk 0:01:50.7]} 44... e5 {[%clk 0:01:57.5]} 45. h4 {[%clk 0:01:47.5]} 45...
e4 {[%clk 0:01:55.8]} 46. h5 {[%clk 0:01:47]} 46... e3 {[%clk 0:01:54.4]} 47. h6
{[%clk 0:01:46.4]} 47... Nc6+ {[%clk 0:01:53.8]} 48. Ka6 {[%clk 0:01:44.8]}
48... gxh6 {[%clk 0:01:53.2]} 49. a5 {[%clk 0:01:41.1]} 49... Nb4+ {[%clk
0:01:51.5]} 50. Ka7 {[%clk 0:01:39.7]} 50... e2 {[%clk 0:01:48.8]} 51. a6 {[%clk
0:01:38.9]} 51... e1=Q {[%clk 0:01:46.7]} 52. Kb8 {[%clk 0:01:36.2]} 52... Qe8+
{[%clk 0:01:45.1]} 53. Kb7 {[%clk 0:01:34.8]} 53... Qd7+ {[%clk 0:01:44.3]} 54.
Kb8 {[%clk 0:01:32.7]} 54... Nxa6+ {[%clk 0:01:42.9]} 55. Ka8 {[%clk 0:01:31.5]}
55... Qc8+ {[%clk 0:01:39.9]} 56. Ka7 {[%clk 0:01:30.7]} 56... Qc7+ {[%clk
0:01:36]} 57. Ka8 {[%clk 0:01:30.1]} 57... Qc6+ {[%clk 0:01:26.4]} 58. Ka7
{[%clk 0:01:29.2]} 58... Nb4 {[%clk 0:01:22.3]} 59. Kb8 {[%clk 0:01:27.1]} 59...
Qd7 {[%clk 0:01:20.8]} 60. Ka8 {[%clk 0:01:25.2]} 60... Kb6 {[%clk 0:01:19.2]}
61. Kb8 {[%clk 0:01:23.6]} 61... Qb7# {[%clk 0:01:17.6]} 0-1

[Event "Live Chess"]
[Site "Chess.com"]
[Date "2023.05.20"]
[Round "-"]
[White "Hoogleboogle"]
[Black "AbilifyXL"]
[Result "0-1"]
[WhiteElo "1391"]
[BlackElo "1947"]
[TimeControl "300"]
[EndTime "13:34:01 PDT"]
[Termination "AbilifyXL won on time"]

1. d4 {[%clk 0:04:56.4]} 1... d5 {[%clk 0:04:59.2]} 2. Nf3 {[%clk 0:04:53.3]}
2... c6 {[%clk 0:04:59.1]} 3. c4 {[%clk 0:04:51.6]} 3... Nf6 {[%clk 0:04:59]} 4.
Nc3 {[%clk 0:04:47.9]} 4... a6 {[%clk 0:04:55.8]} 5. Bf4 {[%clk 0:04:45]} 5...
b5 {[%clk 0:04:54.6]} 6. cxd5 {[%clk 0:04:43.6]} 6... cxd5 {[%clk 0:04:54.5]} 7.
a3 {[%clk 0:04:39.2]} 7... Bf5 {[%clk 0:04:53]} 8. e3 {[%clk 0:04:36.6]} 8... e6
{[%clk 0:04:52.3]} 9. Bd3 {[%clk 0:04:27.4]} 9... Bg6 {[%clk 0:04:50.9]} 10.
Bxg6 {[%clk 0:04:25.7]} 10... hxg6 {[%clk 0:04:50.8]} 11. Rc1 {[%clk 0:04:03.1]}
11... Bd6 {[%clk 0:04:48.2]} 12. Bxd6 {[%clk 0:03:56.7]} 12... Qxd6 {[%clk
0:04:47.2]} 13. Ne5 {[%clk 0:03:55.3]} 13... O-O {[%clk 0:04:45.1]} 14. Ne2
{[%clk 0:03:44.8]} 14... Nbd7 {[%clk 0:04:41.8]} 15. f4 {[%clk 0:03:41.9]} 15...
Rfc8 {[%clk 0:04:39.4]} 16. Ng3 {[%clk 0:03:28.4]} 16... Nb6 {[%clk 0:04:37.1]}
17. b3 {[%clk 0:03:21.1]} 17... Qxa3 {[%clk 0:04:34.9]} 18. O-O {[%clk
0:02:55.5]} 18... Rxc1 {[%clk 0:04:09.7]} 19. Qxc1 {[%clk 0:02:54]} 19... Qxb3
{[%clk 0:04:06.5]} 20. Qc7 {[%clk 0:02:44.3]} 20... Qa3 {[%clk 0:04:04.6]} 21.
Qxf7+ {[%clk 0:02:26.2]} 21... Kh7 {[%clk 0:04:02.3]} 22. Qxg6+ {[%clk
0:02:23.4]} 22... Kg8 {[%clk 0:04:01.1]} 23. Nh5 {[%clk 0:02:11]} 23... Nxh5
{[%clk 0:03:57]} 24. Qf7+ {[%clk 0:02:09.5]} 24... Kh7 {[%clk 0:03:52.9]} 25.
Qxh5+ {[%clk 0:02:08.2]} 25... Kg8 {[%clk 0:03:51.6]} 26. Rf3 {[%clk 0:01:46.4]}
26... Rc8 {[%clk 0:03:18.4]} 27. Kf2 {[%clk 0:01:42.1]} 27... Rc2+ {[%clk
0:02:55.5]} 28. Kg3 {[%clk 0:01:40.5]} 28... Qe7 {[%clk 0:02:49.3]} 29. f5
{[%clk 0:01:28.3]} 29... Nd7 {[%clk 0:02:15]} 30. Ng6 {[%clk 0:01:24.9]} 30...
Qd6+ {[%clk 0:01:59.3]} 31. Kh3 {[%clk 0:01:14.8]} 31... Nf6 {[%clk 0:01:57]}
32. Qh8+ {[%clk 0:01:08.1]} 32... Kf7 {[%clk 0:01:54.5]} 33. Ne5+ {[%clk
0:01:03.8]} 33... Ke7 {[%clk 0:01:45.1]} 34. Qxg7+ {[%clk 0:01:01.2]} 34... Kd8
{[%clk 0:01:44.2]} 35. Qxf6+ {[%clk 0:00:57.7]} 35... Kc7 {[%clk 0:01:43]} 36.
Qxe6 {[%clk 0:00:49.4]} 36... Qxe6 {[%clk 0:01:41.1]} 37. fxe6 {[%clk
0:00:47.6]} 37... Kd6 {[%clk 0:01:41]} 38. Rf6 {[%clk 0:00:42.6]} 38... b4
{[%clk 0:01:39.3]} 39. e7+ {[%clk 0:00:39.4]} 39... Kxe7 {[%clk 0:01:38]} 40.
Rxa6 {[%clk 0:00:37.7]} 40... b3 {[%clk 0:01:36.9]} 41. Rb6 {[%clk 0:00:35.1]}
41... b2 {[%clk 0:01:36]} 42. g4 {[%clk 0:00:30.9]} 42... Re2 {[%clk 0:01:34.4]}
43. Kh4 {[%clk 0:00:26.7]} 43... Rxh2+ {[%clk 0:01:32.6]} 44. Kg5 {[%clk
0:00:25.3]} 44... Re2 {[%clk 0:01:30.8]} 45. Kg6 {[%clk 0:00:18.3]} 45... Rxe3
{[%clk 0:01:21]} 46. g5 {[%clk 0:00:18.2]} 46... Re2 {[%clk 0:01:14.6]} 47. Kg7
{[%clk 0:00:16.5]} 47... Rd2 {[%clk 0:01:12.1]} 48. g6 {[%clk 0:00:14.8]} 48...
Rg2 {[%clk 0:01:00.2]} 49. Nc6+ {[%clk 0:00:12.8]} 49... Kd7 {[%clk 0:00:57.8]}
50. Ne5+ {[%clk 0:00:12.4]} 50... Kc7 {[%clk 0:00:56.3]} 51. Rc6+ {[%clk
0:00:10.9]} 51... Kb7 {[%clk 0:00:55.2]} 52. Kf7 {[%clk 0:00:09.3]} 52... Rf2+
{[%clk 0:00:53.8]} 53. Ke7 {[%clk 0:00:07.1]} 53... Re2 {[%clk 0:00:52.6]} 54.
g7 {[%clk 0:00:04.5]} 54... Rxe5+ {[%clk 0:00:51.3]} 55. dxe5 {[%clk 0:00:02.1]}
55... Kxc6 {[%clk 0:00:46.1]} 56. g8=Q {[%clk 0:00:00.8]} 56... b1=Q {[%clk
0:00:46]} 57. Qc8+ {[%clk 0:00:00.2]} 57... Kb5 {[%clk 0:00:44.5]} 58. Qb8+
{[%clk 0:00:00.1]} 58... Kc5 {[%clk 0:00:43.5]} 0-1

[Event "Live Chess"]
[Site "Chess.com"]
[Date "2023.05.20"]
[Round "-"]
[White "BostonStrangler"]
[Black "Inglaterra"]
[Result "0-1"]
[WhiteElo "2052"]
[BlackElo "2059"]
[TimeControl "300"]
[EndTime "13:34:04 PDT"]
[Termination "Inglaterra won by resignation"]

1. Nf3 {[%clk 0:04:58]} 1... c5 {[%clk 0:04:59.1]} 2. e4 {[%clk 0:04:56.4]} 2...
Nc6 {[%clk 0:04:58.4]} 3. c3 {[%clk 0:04:54.5]} 3... Nf6 {[%clk 0:04:56]} 4. e5
{[%clk 0:04:53.8]} 4... Nd5 {[%clk 0:04:55.5]} 5. d4 {[%clk 0:04:53.5]} 5...
cxd4 {[%clk 0:04:53.8]} 6. cxd4 {[%clk 0:04:50.8]} 6... e6 {[%clk 0:04:53]} 7.
Bc4 {[%clk 0:04:49]} 7... Nb6 {[%clk 0:04:51.2]} 8. Bb3 {[%clk 0:04:47.8]} 8...
d6 {[%clk 0:04:49.4]} 9. Qe2 {[%clk 0:04:45.9]} 9... dxe5 {[%clk 0:04:47.1]} 10.
dxe5 {[%clk 0:04:45]} 10... Bb4+ {[%clk 0:04:45.7]} 11. Nbd2 {[%clk 0:04:41]}
11... O-O {[%clk 0:04:44.6]} 12. O-O {[%clk 0:04:39.5]} 12... Nd4 {[%clk
0:04:39.8]} 13. Nxd4 {[%clk 0:04:38]} 13... Qxd4 {[%clk 0:04:39.6]} 14. Nf3
{[%clk 0:04:37.2]} 14... Qg4 {[%clk 0:04:34.5]} 15. h3 {[%clk 0:04:32.7]} 15...
Qh5 {[%clk 0:04:33.3]} 16. Rd1 {[%clk 0:04:30.1]} 16... Bd7 {[%clk 0:04:27.6]}
17. Rd3 {[%clk 0:04:29.4]} 17... Bb5 {[%clk 0:04:22.3]} 18. Qe4 {[%clk
0:04:17.7]} 18... Bxd3 {[%clk 0:04:16]} 19. Qc4 {[%clk 0:04:17.1]} 19... Bxc4
{[%clk 0:04:13.8]} 0-1

[Event "Live Chess"]
[Site "Chess.com"]
[Date "2023.05.20"]
[Round "-"]
[White "yarek"]
[Black "SavagePawn7"]
[Result "1-0"]
[WhiteElo "1896"]
[BlackElo "795"]
[TimeControl "300"]
[EndTime "13:34:06 PDT"]
[Termination "yarek won by resignation"]

1. e4 {[%clk 0:04:57.4]} 1... d5 {[%clk 0:04:58.4]} 2. Nf3 {[%clk 0:04:54.9]}
2... dxe4 {[%clk 0:04:54.8]} 3. Ng5 {[%clk 0:04:53.6]} 3... e5 {[%clk
0:04:52.9]} 4. Bc4 {[%clk 0:04:48.6]} 4... Qxg5 {[%clk 0:04:47.1]} 5. d4 {[%clk
0:04:43.7]} 5... exd4 {[%clk 0:04:42.8]} 6. Bxg5 {[%clk 0:04:40.6]} 6... Bc5
{[%clk 0:04:29.1]} 7. O-O {[%clk 0:04:32.1]} 7... Nf6 {[%clk 0:04:27.1]} 8. c3
{[%clk 0:04:24.5]} 8... dxc3 {[%clk 0:04:24.6]} 9. Nxc3 {[%clk 0:04:20.1]} 9...
O-O {[%clk 0:04:22.5]} 10. Bxf6 {[%clk 0:04:16.8]} 10... gxf6 {[%clk 0:04:20.3]}
11. Nxe4 {[%clk 0:04:12.9]} 11... Nc6 {[%clk 0:04:18.8]} 12. Nxf6+ {[%clk
0:04:07.5]} 12... Kh8 {[%clk 0:04:17.6]} 13. Qh5 {[%clk 0:04:03.4]} 1-0

[Event "Live Chess"]
[Site "Chess.com"]
[Date "2023.05.20"]
[Round "-"]
[White "Bob2pen"]
[Black "domrobson"]
[Result "0-1"]
[WhiteElo "1802"]
[BlackElo "1763"]
[TimeControl "300"]
[EndTime "13:34:16 PDT"]
[Termination "domrobson won by checkmate"]

1. c4 {[%clk 0:04:56.8]} 1... Nf6 {[%clk 0:04:58.5]} 2. g3 {[%clk 0:04:55.7]}
2... e6 {[%clk 0:04:57.4]} 3. Bg2 {[%clk 0:04:54.8]} 3... d5 {[%clk 0:04:57]} 4.
Nf3 {[%clk 0:04:53.9]} 4... c6 {[%clk 0:04:56.6]} 5. O-O {[%clk 0:04:52.8]} 5...
Nbd7 {[%clk 0:04:56.2]} 6. b3 {[%clk 0:04:50.2]} 6... Be7 {[%clk 0:04:55.7]} 7.
Bb2 {[%clk 0:04:48.9]} 7... O-O {[%clk 0:04:55.2]} 8. d3 {[%clk 0:04:47.3]} 8...
b6 {[%clk 0:04:54.5]} 9. Re1 {[%clk 0:04:41.9]} 9... Bb7 {[%clk 0:04:54.1]} 10.
Nbd2 {[%clk 0:04:40.7]} 10... Rb8 {[%clk 0:04:49.9]} 11. e4 {[%clk 0:04:38.3]}
11... dxe4 {[%clk 0:04:49]} 12. Nxe4 {[%clk 0:04:36.6]} 12... Nxe4 {[%clk
0:04:47.8]} 13. dxe4 {[%clk 0:04:35]} 13... c5 {[%clk 0:04:45.9]} 14. Qc2 {[%clk
0:04:31.2]} 14... Qc7 {[%clk 0:04:42.6]} 15. Rad1 {[%clk 0:04:29.4]} 15... Rfd8
{[%clk 0:04:38.3]} 16. Rd2 {[%clk 0:04:22.9]} 16... Bf6 {[%clk 0:04:36.7]} 17.
Red1 {[%clk 0:04:21]} 17... Bxb2 {[%clk 0:04:34.8]} 18. Qxb2 {[%clk 0:04:12.9]}
18... Bxe4 {[%clk 0:04:29.1]} 19. Ne5 {[%clk 0:04:01.3]} 19... Nxe5 {[%clk
0:04:23.7]} 20. Qxe5 {[%clk 0:03:55.2]} 20... Rxd2 {[%clk 0:04:09.6]} 21. Qxc7
{[%clk 0:03:48.5]} 21... Rxd1+ {[%clk 0:04:07.2]} 22. Bf1 {[%clk 0:03:47.4]}
22... Rbd8 {[%clk 0:04:03.8]} 23. f3 {[%clk 0:03:43.4]} 23... Bxf3 {[%clk
0:03:56.5]} 24. Kf2 {[%clk 0:03:41]} 24... Ba8 {[%clk 0:03:51.7]} 25. Qxa7
{[%clk 0:03:34.9]} 25... R1d2+ {[%clk 0:03:45.7]} 26. Ke1 {[%clk 0:03:29.9]}
26... Bf3 {[%clk 0:03:30.1]} 27. Qxb6 {[%clk 0:03:24.1]} 27... h6 {[%clk
0:03:26]} 28. Qxc5 {[%clk 0:03:19.1]} 28... Rxa2 {[%clk 0:03:14.9]} 29. Be2
{[%clk 0:02:56.4]} 29... Rxe2+ {[%clk 0:03:11.5]} 30. Kf1 {[%clk 0:02:55.4]}
30... Rd1# {[%clk 0:03:09.5]} 0-1

[Event "Live Chess"]
[Site "Chess.com"]
[Date "2023.05.20"]
[Round "-"]
[White "Shepherds_Pie"]
[Black "luckywookie"]
[Result "1-0"]
[WhiteElo "1919"]
[BlackElo "744"]
[TimeControl "300"]
[EndTime "13:34:25 PDT"]
[Termination "Shepherds_Pie won by checkmate"]

1. c4 {[%clk 0:04:55.2]} 1... e5 {[%clk 0:04:53.7]} 2. Nc3 {[%clk 0:04:54]} 2...
c6 {[%clk 0:04:50.1]} 3. Nf3 {[%clk 0:04:52.9]} 3... d6 {[%clk 0:04:45.2]} 4. d4
{[%clk 0:04:51.5]} 4... Nd7 {[%clk 0:04:43.7]} 5. g3 {[%clk 0:04:46]} 5... Ne7
{[%clk 0:04:42.7]} 6. Bg2 {[%clk 0:04:44.6]} 6... Nf5 {[%clk 0:04:41.5]} 7. e3
{[%clk 0:04:36.9]} 7... c5 {[%clk 0:04:40.1]} 8. dxe5 {[%clk 0:04:29.5]} 8...
dxe5 {[%clk 0:04:24]} 9. O-O {[%clk 0:04:27.8]} 9... Bd6 {[%clk 0:04:08.9]} 10.
g4 {[%clk 0:04:23.2]} 10... Ne7 {[%clk 0:04:00.4]} 11. Qxd6 {[%clk 0:04:21.1]}
11... O-O {[%clk 0:03:49.7]} 12. Rd1 {[%clk 0:04:14.2]} 12... b6 {[%clk
0:03:28.4]} 13. Nxe5 {[%clk 0:04:07.6]} 13... Nxe5 {[%clk 0:03:24.9]} 14. Qxd8
{[%clk 0:04:04.6]} 14... Rxd8 {[%clk 0:03:20.4]} 15. Rxd8# {[%clk 0:04:02.9]}
1-0

[Event "Live Chess"]
[Site "Chess.com"]
[Date "2023.05.20"]
[Round "-"]
[White "MartaMost"]
[Black "Goblinbasher"]
[Result "0-1"]
[WhiteElo "1059"]
[BlackElo "1223"]
[TimeControl "300"]
[EndTime "13:34:33 PDT"]
[Termination "Goblinbasher won by resignation"]

1. e4 {[%clk 0:04:57.7]} 1... c5 {[%clk 0:04:58.5]} 2. Bc4 {[%clk 0:04:53.1]}
2... e6 {[%clk 0:04:56.5]} 3. Qh5 {[%clk 0:04:44.8]} 3... Nc6 {[%clk 0:04:49.4]}
4. Nf3 {[%clk 0:04:35.8]} 4... a6 {[%clk 0:04:46.8]} 5. Ng5 {[%clk 0:04:30.8]}
5... Qf6 {[%clk 0:04:29.7]} 6. d3 {[%clk 0:04:19.6]} 6... Nd4 {[%clk 0:04:27.2]}
7. Na3 {[%clk 0:04:12.7]} 7... b5 {[%clk 0:04:23.3]} 8. Bb3 {[%clk 0:04:04.8]}
8... Qg6 {[%clk 0:04:17.8]} 9. Qxg6 {[%clk 0:04:00.4]} 9... hxg6 {[%clk
0:04:13.8]} 10. Be3 {[%clk 0:03:55.6]} 10... Nxb3 {[%clk 0:04:11.2]} 11. cxb3
{[%clk 0:03:49.4]} 11... Be7 {[%clk 0:04:06.6]} 12. Nf3 {[%clk 0:03:41.1]} 12...
Bb7 {[%clk 0:03:57.4]} 13. Ne5 {[%clk 0:03:38]} 13... d6 {[%clk 0:03:51.9]} 14.
Ng4 {[%clk 0:03:33.2]} 14... f5 {[%clk 0:03:43.7]} 15. exf5 {[%clk 0:03:31.4]}
15... gxf5 {[%clk 0:03:41.8]} 16. Nh6 {[%clk 0:03:00.2]} 16... Nxh6 {[%clk
0:03:38.4]} 17. Bd2 {[%clk 0:02:44]} 17... Ng4 {[%clk 0:03:35.2]} 18. b4 {[%clk
0:02:36.8]} 18... cxb4 {[%clk 0:03:28.9]} 19. Bxb4 {[%clk 0:02:34.9]} 19... Rxh2
{[%clk 0:03:26.9]} 20. Rxh2 {[%clk 0:02:32.6]} 20... Nxh2 {[%clk 0:03:25]} 21.
Bc3 {[%clk 0:02:18.5]} 21... Kf7 {[%clk 0:03:21.6]} 22. Nc2 {[%clk 0:02:10.8]}
22... Bxg2 {[%clk 0:03:18.4]} 23. Nd4 {[%clk 0:02:06.1]} 23... g5 {[%clk
0:03:11.5]} 0-1

[Event "Live Chess"]
[Site "Chess.com"]
[Date "2023.05.20"]
[Round "-"]
[White "Nazar_777"]
[Black "mliszewski"]
[Result "1-0"]
[WhiteElo "1593"]
[BlackElo "1882"]
[TimeControl "300"]
[EndTime "13:34:34 PDT"]
[Termination "Nazar_777 won by checkmate"]

1. e3 {[%clk 0:04:51.2]} 1... b6 {[%clk 0:04:56.3]} 2. h4 {[%clk 0:04:50.2]}
2... Bb7 {[%clk 0:04:53.7]} 3. a3 {[%clk 0:04:49.7]} 3... e6 {[%clk 0:04:42.9]}
4. c4 {[%clk 0:04:48.7]} 4... Nf6 {[%clk 0:04:40.8]} 5. Nf3 {[%clk 0:04:48]}
5... d5 {[%clk 0:04:31]} 6. cxd5 {[%clk 0:04:46.9]} 6... exd5 {[%clk 0:04:30.1]}
7. Nc3 {[%clk 0:04:46.1]} 7... Be7 {[%clk 0:04:29.3]} 8. Qc2 {[%clk 0:04:45.2]}
8... O-O {[%clk 0:04:21.5]} 9. Be2 {[%clk 0:04:44.2]} 9... c5 {[%clk 0:04:20.5]}
10. Ng5 {[%clk 0:04:43.2]} 10... h6 {[%clk 0:04:18.2]} 11. Bh5 {[%clk
0:04:41.9]} 11... Nxh5 {[%clk 0:04:16.4]} 12. Qh7# {[%clk 0:04:36.2]} 1-0

[Event "Live Chess"]
[Site "Chess.com"]
[Date "2023.05.20"]
[Round "-"]
[White "JoshMcK"]
[Black "SiDebanks"]
[Result "1-0"]
[WhiteElo "1586"]
[BlackElo "1368"]
[TimeControl "300"]
[EndTime "13:34:47 PDT"]
[Termination "JoshMcK won by checkmate"]

1. e4 {[%clk 0:04:57.7]} 1... c6 {[%clk 0:04:59.1]} 2. d4 {[%clk 0:04:55.1]}
2... d5 {[%clk 0:04:59]} 3. e5 {[%clk 0:04:49.3]} 3... c5 {[%clk 0:04:58.5]} 4.
Nf3 {[%clk 0:04:47.1]} 4... Nc6 {[%clk 0:04:57.7]} 5. dxc5 {[%clk 0:04:44.9]}
5... e6 {[%clk 0:04:56.3]} 6. a3 {[%clk 0:04:43.7]} 6... Bxc5 {[%clk 0:04:54.7]}
7. b4 {[%clk 0:04:43.4]} 7... Bf8 {[%clk 0:04:42.3]} 8. Nbd2 {[%clk 0:04:34.6]}
8... Nge7 {[%clk 0:04:40.8]} 9. Bb2 {[%clk 0:04:33]} 9... Ng6 {[%clk 0:04:39.4]}
10. Bd3 {[%clk 0:04:26]} 10... a5 {[%clk 0:04:26.2]} 11. O-O {[%clk 0:04:23.4]}
11... axb4 {[%clk 0:04:23.1]} 12. axb4 {[%clk 0:04:23]} 12... Rxa1 {[%clk
0:04:14.5]} 13. Qxa1 {[%clk 0:04:22.9]} 13... Bxb4 {[%clk 0:04:00.4]} 14. c3
{[%clk 0:04:19.3]} 14... Be7 {[%clk 0:03:54]} 15. Rd1 {[%clk 0:04:06.2]} 15...
Ncxe5 {[%clk 0:03:46.8]} 16. Nxe5 {[%clk 0:04:04.2]} 16... Nxe5 {[%clk
0:03:45.4]} 17. Bb5+ {[%clk 0:04:01.9]} 17... Nc6 {[%clk 0:03:19.3]} 18. c4
{[%clk 0:03:57.8]} 18... Bf6 {[%clk 0:03:01.8]} 19. cxd5 {[%clk 0:03:49.3]}
19... Bxb2 {[%clk 0:03:00.7]} 20. Qxb2 {[%clk 0:03:44.7]} 20... Qxd5 {[%clk
0:02:45]} 21. Bxc6+ {[%clk 0:03:43.4]} 21... bxc6 {[%clk 0:02:23.9]} 22. Qxg7
{[%clk 0:03:42.6]} 22... Rf8 {[%clk 0:01:49.2]} 23. Qxh7 {[%clk 0:03:37.1]}
23... Qe5 {[%clk 0:01:31]} 24. Nf3 {[%clk 0:03:21]} 24... Qe2 {[%clk 0:01:19.4]}
25. Qd3 {[%clk 0:03:14.8]} 25... Qxd3 {[%clk 0:01:00.1]} 26. Rxd3 {[%clk
0:03:14.7]} 26... Ba6 {[%clk 0:00:52.7]} 27. Ra3 {[%clk 0:03:10.8]} 27... Bb5
{[%clk 0:00:50.5]} 28. Ne5 {[%clk 0:02:59.5]} 28... f6 {[%clk 0:00:42.7]} 29.
Nd3 {[%clk 0:02:49.4]} 29... Ke7 {[%clk 0:00:33.5]} 30. Nb4 {[%clk 0:02:41.8]}
30... Rd8 {[%clk 0:00:21.8]} 31. g3 {[%clk 0:02:37.3]} 31... c5 {[%clk 0:00:19]}
32. Ra7+ {[%clk 0:02:29.7]} 32... Ke8 {[%clk 0:00:17]} 33. Rb7 {[%clk
0:02:24.1]} 33... Rd1+ {[%clk 0:00:14.8]} 34. Kg2 {[%clk 0:02:18.5]} 34... cxb4
{[%clk 0:00:13.1]} 35. Rxb5 {[%clk 0:02:16.7]} 35... Rb1 {[%clk 0:00:12.6]} 36.
h4 {[%clk 0:02:14.7]} 36... b3 {[%clk 0:00:12.5]} 37. Kf3 {[%clk 0:02:11.6]}
37... b2 {[%clk 0:00:12.4]} 38. h5 {[%clk 0:02:10]} 38... f5 {[%clk 0:00:11.2]}
39. h6 {[%clk 0:02:09]} 39... Kf8 {[%clk 0:00:10.1]} 40. Rb7 {[%clk 0:02:00.2]}
40... Kg8 {[%clk 0:00:10]} 41. Kf4 {[%clk 0:01:53.4]} 41... Kh8 {[%clk
0:00:09.9]} 42. Kg5 {[%clk 0:01:52.1]} 42... e5 {[%clk 0:00:08.8]} 43. Kg6
{[%clk 0:01:51.1]} 43... f4 {[%clk 0:00:08.5]} 44. Rb8# {[%clk 0:01:50.5]} 1-0

[Event "Live Chess"]
[Site "Chess.com"]
[Date "2023.05.20"]
[Round "-"]
[White "Doge_Dandolo"]
[Black "LozzaLoaf"]
[Result "1-0"]
[WhiteElo "2008"]
[BlackElo "248"]
[TimeControl "300"]
[EndTime "13:34:47 PDT"]
[Termination "Doge_Dandolo won by checkmate"]

1. Nf3 {[%clk 0:04:58.7]} 1... d5 {[%clk 0:04:57.5]} 2. c4 {[%clk 0:04:57.3]}
2... dxc4 {[%clk 0:04:56.2]} 3. e3 {[%clk 0:04:56.3]} 3... c5 {[%clk 0:04:54.1]}
4. Bxc4 {[%clk 0:04:54.7]} 4... a6 {[%clk 0:04:51.7]} 5. Qb3 {[%clk 0:04:48.3]}
5... b5 {[%clk 0:04:49.3]} 6. Bxf7+ {[%clk 0:04:46.7]} 6... Kd7 {[%clk
0:04:43.4]} 7. Qe6+ {[%clk 0:04:46]} 7... Kc7 {[%clk 0:04:41.3]} 8. Qe5+ {[%clk
0:04:34.7]} 8... Kd7 {[%clk 0:04:34.8]} 9. d4 {[%clk 0:04:26.1]} 9... Nf6 {[%clk
0:04:31.3]} 10. O-O {[%clk 0:04:19.8]} 10... Ng4 {[%clk 0:04:26.5]} 11. Qd5+
{[%clk 0:04:08.9]} 11... Kc7 {[%clk 0:04:23.7]} 12. Qxc5+ {[%clk 0:04:04.6]}
12... Kb7 {[%clk 0:04:20.6]} 13. Bd5+ {[%clk 0:03:59]} 13... Nc6 {[%clk
0:04:17.3]} 14. Qxc6+ {[%clk 0:03:55.8]} 14... Kb8 {[%clk 0:04:14.7]} 15. Qxa8+
{[%clk 0:03:54.5]} 15... Kc7 {[%clk 0:04:13.3]} 16. Bd2 {[%clk 0:03:49.7]} 16...
Qxd5 {[%clk 0:04:11.9]} 17. Qxd5 {[%clk 0:03:47.7]} 17... e6 {[%clk 0:03:59.8]}
18. Rc1+ {[%clk 0:03:44.9]} 18... Kb8 {[%clk 0:03:56.3]} 19. Qe4 {[%clk
0:03:38.6]} 19... Bd6 {[%clk 0:03:52.4]} 20. Qxg4 {[%clk 0:03:36.1]} 20... Bb7
{[%clk 0:03:44.2]} 21. a4 {[%clk 0:03:33.2]} 21... Rc8 {[%clk 0:03:43.1]} 22.
Rxc8+ {[%clk 0:03:30.7]} 22... Kxc8 {[%clk 0:03:41.9]} 23. Qxe6+ {[%clk
0:03:26.2]} 23... Kc7 {[%clk 0:03:38.8]} 24. Ba5+ {[%clk 0:03:24.7]} 24... Kc6
{[%clk 0:03:33.2]} 25. axb5+ {[%clk 0:03:23.3]} 25... Kxb5 {[%clk 0:03:31.7]}
26. Qxd6 {[%clk 0:03:21.9]} 26... Bxf3 {[%clk 0:03:25.8]} 27. Qc5# {[%clk
0:03:17.6]} 1-0